[Event "*** SCC Grand Prix: Titled Tuesday Blitz"]
[Site "Chess.com"]
[Date "2020.08.25"]
[Round "5"]
[White "FedaMaster"]
[Black "Ali_rastbod"]
[Result "0-1"]
[WhiteElo "2434"]
[BlackElo "2674"]
[TimeControl "180+1"]
[EndTime "10:58:30 PDT"]
[Termination "Ali_rastbod won by resignation"]

1. e4 {[%clk 0:03:00.9]} 1... e6 {[%clk 0:02:58.9]} 2. d4 {[%clk 0:03:00.3]}
2... d5 {[%clk 0:02:59.1]} 3. exd5 {[%clk 0:03:00.6]} 3... exd5 {[%clk
0:02:58.8]} 4. Nf3 {[%clk 0:03:01.5]} 4... Bd6 {[%clk 0:02:54.9]} 5. Bd3 {[%clk
0:02:59.8]} 5... Nc6 {[%clk 0:02:54.6]} 6. Nc3 {[%clk 0:02:58.9]} 6... Nge7
{[%clk 0:02:49]} 7. Ne2 {[%clk 0:02:54.7]} 7... Nb4 {[%clk 0:02:48.1]} 8. Bb5+
{[%clk 0:02:54]} 8... c6 {[%clk 0:02:48]} 9. Ba4 {[%clk 0:02:54]} 9... Bf5
{[%clk 0:02:47]} 10. Ng3 {[%clk 0:02:50.2]} 10... Bg6 {[%clk 0:02:30]} 11. O-O
{[%clk 0:02:49.1]} 11... O-O {[%clk 0:02:29.8]} 12. a3 {[%clk 0:02:43.4]} 12...
Na6 {[%clk 0:02:29.2]} 13. c3 {[%clk 0:02:26.7]} 13... Re8 {[%clk 0:02:26.3]}
14. Nh4 {[%clk 0:02:18.9]} 14... Nc7 {[%clk 0:02:22]} 15. Nxg6 {[%clk
0:02:16.9]} 15... fxg6 {[%clk 0:02:15.7]} 16. Bc2 {[%clk 0:02:14.5]} 16... Qd7
{[%clk 0:02:13.2]} 17. Bg5 {[%clk 0:02:07.3]} 17... Ne6 {[%clk 0:02:10.3]} 18.
Be3 {[%clk 0:02:03.8]} 18... Rf8 {[%clk 0:02:06]} 19. Qg4 {[%clk 0:02:03]} 19...
Nc5 {[%clk 0:01:52.1]} 20. Qe2 {[%clk 0:01:53.7]} 20... Ne6 {[%clk 0:01:48.4]}
21. Rae1 {[%clk 0:01:52.9]} 21... Rae8 {[%clk 0:01:46.4]} 22. Qg4 {[%clk
0:01:53]} 22... Nc8 {[%clk 0:01:39.1]} 23. Bc1 {[%clk 0:01:35.4]} 23... Qf7
{[%clk 0:01:33.6]} 24. Re3 {[%clk 0:01:29.2]} 24... Nf4 {[%clk 0:01:30]} 25. Qd1
{[%clk 0:01:11.9]} 25... h5 {[%clk 0:01:22.1]} 26. Rf3 {[%clk 0:00:41.3]} 26...
h4 {[%clk 0:01:17.2]} 27. Bxf4 {[%clk 0:00:40]} 27... Bxf4 {[%clk 0:01:15.4]}
28. Ne2 {[%clk 0:00:39.3]} 28... g5 {[%clk 0:01:11.5]} 29. Nxf4 {[%clk
0:00:22.5]} 29... gxf4 {[%clk 0:01:12.4]} 30. Rh3 {[%clk 0:00:22.9]} 30... g5
{[%clk 0:00:59.8]} 31. Rd3 {[%clk 0:00:17.8]} 31... Nd6 {[%clk 0:00:52.2]} 32.
f3 {[%clk 0:00:16.3]} 32... Nc4 {[%clk 0:00:51.3]} 33. Qc1 {[%clk 0:00:14.5]}
33... Ne3 {[%clk 0:00:51]} 34. Re1 {[%clk 0:00:14.8]} 34... Re7 {[%clk
0:00:50.3]} 35. Rdxe3 {[%clk 0:00:14.1]} 35... Rxe3 {[%clk 0:00:49.1]} 36. Rxe3
{[%clk 0:00:15]} 36... fxe3 {[%clk 0:00:49.9]} 37. Qxe3 {[%clk 0:00:15.9]} 37...
Qf6 {[%clk 0:00:49.8]} 38. Qd3 {[%clk 0:00:15.9]} 38... Rf7 {[%clk 0:00:49]} 39.
h3 {[%clk 0:00:16.3]} 39... Re7 {[%clk 0:00:49]} 40. Kf1 {[%clk 0:00:15.4]}
40... Qe6 {[%clk 0:00:46.9]} 41. Qd2 {[%clk 0:00:15.4]} 41... Qe3 {[%clk
0:00:45.8]} 42. Qd1 {[%clk 0:00:13.7]} 42... Kg7 {[%clk 0:00:45.6]} 43. Bd3
{[%clk 0:00:13.9]} 43... Kf6 {[%clk 0:00:45.6]} 44. Be2 {[%clk 0:00:14.1]} 44...
Kf5 {[%clk 0:00:43.7]} 45. Qe1 {[%clk 0:00:12.7]} 45... Kf4 {[%clk 0:00:42.7]}
46. Qd1 {[%clk 0:00:13]} 46... Kg3 {[%clk 0:00:42.1]} 47. Qe1+ {[%clk
0:00:04.9]} 47... Kh2 {[%clk 0:00:41.3]} 48. Qf2 {[%clk 0:00:05.8]} 48... Qxe2+
{[%clk 0:00:36.3]} 49. Qxe2 {[%clk 0:00:05.7]} 49... Rxe2 {[%clk 0:00:37.2]} 50.
Kxe2 {[%clk 0:00:06.4]} 50... Kxg2 {[%clk 0:00:37.6]} 51. Ke3 {[%clk 0:00:04.9]}
51... Kxh3 {[%clk 0:00:37.2]} 52. f4 {[%clk 0:00:05.8]} 52... gxf4+ {[%clk
0:00:37.3]} 53. Kf3 {[%clk 0:00:06.7]} 53... Kh2 {[%clk 0:00:35.7]} 54. Kf2
{[%clk 0:00:07]} 54... h3 {[%clk 0:00:34]} 55. a4 {[%clk 0:00:03.5]} 55... b6
{[%clk 0:00:22.2]} 56. b4 {[%clk 0:00:02]} 56... b5 {[%clk 0:00:20.4]} 57. axb5
{[%clk 0:00:01.9]} 57... cxb5 {[%clk 0:00:21.3]} 58. c4 {[%clk 0:00:02.6]} 58...
bxc4 {[%clk 0:00:20.6]} 59. b5 {[%clk 0:00:03.5]} 59... c3 {[%clk 0:00:21.1]}
60. Ke2 {[%clk 0:00:04.4]} 60... f3+ {[%clk 0:00:20.8]} 61. Kd3 {[%clk
0:00:05.3]} 61... f2 {[%clk 0:00:21]} 0-1

[Event "*** SCC Grand Prix: Titled Tuesday Blitz"]
[Site "Chess.com"]
[Date "2020.08.25"]
[Round "5"]
[White "Logman74"]
[Black "Moon_stone123"]
[Result "0-1"]
[WhiteElo "2390"]
[BlackElo "2532"]
[TimeControl "180+1"]
[EndTime "10:58:50 PDT"]
[Termination "Moon_stone123 won on time"]

1. e4 {[%clk 0:03:00.9]} 1... c5 {[%clk 0:02:59.6]} 2. Nf3 {[%clk 0:02:59.9]}
2... d6 {[%clk 0:02:59.4]} 3. d4 {[%clk 0:02:59.2]} 3... cxd4 {[%clk 0:03:00.3]}
4. Nxd4 {[%clk 0:02:59.2]} 4... Nf6 {[%clk 0:03:00.7]} 5. Nc3 {[%clk 0:02:59.5]}
5... g6 {[%clk 0:03:01.4]} 6. Be3 {[%clk 0:02:58.9]} 6... Bg7 {[%clk 0:03:01.9]}
7. f3 {[%clk 0:02:59.5]} 7... Nc6 {[%clk 0:03:02.4]} 8. Qd2 {[%clk 0:02:59.1]}
8... O-O {[%clk 0:03:02.8]} 9. O-O-O {[%clk 0:02:59.2]} 9... Nxd4 {[%clk
0:03:03.2]} 10. Bxd4 {[%clk 0:02:58.4]} 10... Be6 {[%clk 0:03:03.8]} 11. g4
{[%clk 0:02:56.8]} 11... Qa5 {[%clk 0:03:03]} 12. Kb1 {[%clk 0:02:54.9]} 12...
Rfc8 {[%clk 0:03:03.5]} 13. a3 {[%clk 0:02:54.4]} 13... Rab8 {[%clk 0:03:03.6]}
14. h4 {[%clk 0:02:53.3]} 14... b5 {[%clk 0:03:03.2]} 15. Nd5 {[%clk 0:02:45.8]}
15... Qxd2 {[%clk 0:03:04.1]} 16. Rxd2 {[%clk 0:02:45.2]} 16... Nxd5 {[%clk
0:02:59.6]} 17. exd5 {[%clk 0:02:43.7]} 17... Bxd4 {[%clk 0:02:59.6]} 18. dxe6
{[%clk 0:02:36.3]} 18... Be3 {[%clk 0:02:57.7]} 19. exf7+ {[%clk 0:02:35.4]}
19... Kxf7 {[%clk 0:02:58.6]} 20. Rd3 {[%clk 0:02:30.9]} 20... Bf4 {[%clk
0:02:57.5]} 21. h5 {[%clk 0:02:28.7]} 21... Ke6 {[%clk 0:02:43.2]} 22. Rd4
{[%clk 0:02:09.4]} 22... Be5 {[%clk 0:02:40.2]} 23. Re4 {[%clk 0:02:09.3]} 23...
d5 {[%clk 0:02:38.4]} 24. Re1 {[%clk 0:02:07.3]} 24... Kd6 {[%clk 0:02:18.2]}
25. hxg6 {[%clk 0:02:06.4]} 25... hxg6 {[%clk 0:02:19.1]} 26. Rh6 {[%clk
0:02:05.9]} 26... Rg8 {[%clk 0:02:17.1]} 27. Bd3 {[%clk 0:02:04.8]} 27... Rbf8
{[%clk 0:02:13.8]} 28. Rf1 {[%clk 0:01:36.4]} 28... Rf6 {[%clk 0:01:57.4]} 29.
Bxb5 {[%clk 0:01:32.9]} 29... Rb8 {[%clk 0:01:56.9]} 30. a4 {[%clk 0:01:30.5]}
30... a6 {[%clk 0:01:54.1]} 31. Bxa6 {[%clk 0:01:30.1]} 31... Rxb2+ {[%clk
0:01:54.6]} 32. Kc1 {[%clk 0:01:25.2]} 32... Rb6 {[%clk 0:01:55.1]} 33. f4
{[%clk 0:00:50.4]} 33... Bxf4+ {[%clk 0:01:27.3]} 34. Rxf4 {[%clk 0:00:48.4]}
34... Rxf4 {[%clk 0:01:28.2]} 35. Rxg6+ {[%clk 0:00:48.4]} 35... e6 {[%clk
0:01:28.7]} 36. Bb5 {[%clk 0:00:41.9]} 36... Rb8 {[%clk 0:01:27.2]} 37. Kd2
{[%clk 0:00:30.4]} 37... Rf2+ {[%clk 0:01:26.2]} 38. Kd3 {[%clk 0:00:24.1]}
38... Rc8 {[%clk 0:01:21.6]} 39. c4 {[%clk 0:00:23.2]} 39... dxc4+ {[%clk
0:00:57.8]} 40. Bxc4 {[%clk 0:00:22.9]} 40... Re8 {[%clk 0:00:41.3]} 41. Bb5
{[%clk 0:00:21.2]} 41... Re7 {[%clk 0:00:40.7]} 42. Kc4 {[%clk 0:00:20.5]} 42...
Rf4+ {[%clk 0:00:40]} 43. Kb3 {[%clk 0:00:20.3]} 43... Ke5 {[%clk 0:00:39.6]}
44. a5 {[%clk 0:00:19.6]} 44... Rb7 {[%clk 0:00:36.5]} 45. Rg5+ {[%clk
0:00:19.4]} 45... Kd6 {[%clk 0:00:27]} 46. a6 {[%clk 0:00:19.4]} 46... Rb8
{[%clk 0:00:24.2]} 47. Kc3 {[%clk 0:00:17.9]} 47... e5 {[%clk 0:00:23.8]} 48.
Rg6+ {[%clk 0:00:16]} 48... Kc5 {[%clk 0:00:22.4]} 49. Bc6 {[%clk 0:00:16]}
49... Rc4+ {[%clk 0:00:19.9]} 50. Kd3 {[%clk 0:00:15.4]} 50... Rd4+ {[%clk
0:00:18.9]} 51. Ke3 {[%clk 0:00:15.4]} 51... Rb3+ {[%clk 0:00:18.7]} 52. Ke2
{[%clk 0:00:15.5]} 52... Ra3 {[%clk 0:00:18.8]} 53. Bb7 {[%clk 0:00:11.1]} 53...
Rb4 {[%clk 0:00:18.6]} 54. Rc6+ {[%clk 0:00:09.9]} 54... Kd4 {[%clk 0:00:18.4]}
55. Rc2 {[%clk 0:00:09.6]} 55... e4 {[%clk 0:00:15.4]} 56. g5 {[%clk 0:00:09.6]}
56... Ke5 {[%clk 0:00:15.4]} 57. g6 {[%clk 0:00:08.9]} 57... Kf6 {[%clk
0:00:15.4]} 58. Rc6+ {[%clk 0:00:07.7]} 58... Kg7 {[%clk 0:00:14.9]} 59. Kd2
{[%clk 0:00:03.3]} 59... Rb2+ {[%clk 0:00:13.7]} 60. Rc2 {[%clk 0:00:03.1]}
60... Rxc2+ {[%clk 0:00:12.3]} 61. Kxc2 {[%clk 0:00:03]} 61... e3 {[%clk
0:00:12.3]} 62. Kd1 {[%clk 0:00:01.9]} 62... Kxg6 {[%clk 0:00:11.4]} 63. Ke2
{[%clk 0:00:02]} 63... Kf6 {[%clk 0:00:11.1]} 0-1

[Event "*** SCC Grand Prix: Titled Tuesday Blitz"]
[Site "Chess.com"]
[Date "2020.08.25"]
[Round "5"]
[White "Gusarov91"]
[Black "SergeyKarjakin"]
[Result "0-1"]
[WhiteElo "2653"]
[BlackElo "2972"]
[TimeControl "180+1"]
[EndTime "10:59:03 PDT"]
[Termination "SergeyKarjakin won on time"]

1. e4 {[%clk 0:02:56.3]} 1... c6 {[%clk 0:03:00.3]} 2. d4 {[%clk 0:02:55.7]}
2... d5 {[%clk 0:03:01.2]} 3. Nc3 {[%clk 0:02:55.2]} 3... dxe4 {[%clk
0:03:01.4]} 4. Nxe4 {[%clk 0:02:55.4]} 4... Bf5 {[%clk 0:03:02]} 5. Ng3 {[%clk
0:02:55.4]} 5... Bg6 {[%clk 0:03:02]} 6. h4 {[%clk 0:02:55.7]} 6... h6 {[%clk
0:03:01.6]} 7. h5 {[%clk 0:02:56]} 7... Bh7 {[%clk 0:03:00.7]} 8. Nf3 {[%clk
0:02:55.9]} 8... e6 {[%clk 0:03:00.4]} 9. Bd3 {[%clk 0:02:55.8]} 9... Bxd3
{[%clk 0:02:58.5]} 10. Qxd3 {[%clk 0:02:56.7]} 10... c5 {[%clk 0:02:57.1]} 11.
Qb5+ {[%clk 0:02:53.7]} 11... Qd7 {[%clk 0:02:55.9]} 12. Qxd7+ {[%clk
0:02:53.4]} 12... Nxd7 {[%clk 0:02:56.8]} 13. Be3 {[%clk 0:02:50.4]} 13... Ngf6
{[%clk 0:02:55.4]} 14. dxc5 {[%clk 0:02:50]} 14... Bxc5 {[%clk 0:02:51.1]} 15.
Bxc5 {[%clk 0:02:49.1]} 15... Nxc5 {[%clk 0:02:52]} 16. O-O-O {[%clk 0:02:45.9]}
16... Ke7 {[%clk 0:02:48.8]} 17. Ne5 {[%clk 0:02:45.6]} 17... Rhd8 {[%clk
0:02:47]} 18. f3 {[%clk 0:02:44.8]} 18... Rac8 {[%clk 0:02:40]} 19. Rxd8 {[%clk
0:02:44.1]} 19... Rxd8 {[%clk 0:02:40]} 20. Rd1 {[%clk 0:02:43.4]} 20... Rxd1+
{[%clk 0:02:18.8]} 21. Kxd1 {[%clk 0:02:43.3]} 21... Nd5 {[%clk 0:02:19.7]} 22.
Nf1 {[%clk 0:02:33.7]} 22... f5 {[%clk 0:02:10]} 23. g3 {[%clk 0:01:56.6]} 23...
Kf6 {[%clk 0:02:02.3]} 24. f4 {[%clk 0:01:56.5]} 24... Ne4 {[%clk 0:01:55.2]}
25. c4 {[%clk 0:01:49]} 25... Nb4 {[%clk 0:01:37.7]} 26. a3 {[%clk 0:01:45.7]}
26... Nc6 {[%clk 0:01:37.7]} 27. Nxc6 {[%clk 0:01:41.2]} 27... bxc6 {[%clk
0:01:38.6]} 28. Ke2 {[%clk 0:01:41.5]} 28... Ke7 {[%clk 0:01:39.2]} 29. Ke3
{[%clk 0:01:39.3]} 29... Kd6 {[%clk 0:01:33.9]} 30. g4 {[%clk 0:01:36.9]} 30...
Kc5 {[%clk 0:01:07.9]} 31. gxf5 {[%clk 0:01:35.3]} 31... exf5 {[%clk 0:01:08.1]}
32. b3 {[%clk 0:01:35.7]} 32... a5 {[%clk 0:01:06.3]} 33. Kd3 {[%clk 0:01:35.3]}
33... Nf2+ {[%clk 0:01:01.9]} 34. Ke3 {[%clk 0:01:26.9]} 34... Ng4+ {[%clk
0:00:57.1]} 35. Kd3 {[%clk 0:01:26.6]} 35... Nf2+ {[%clk 0:00:51.6]} 36. Ke3
{[%clk 0:01:26.4]} 36... Ne4 {[%clk 0:00:50.3]} 37. Kd3 {[%clk 0:01:25.7]} 37...
Kd6 {[%clk 0:00:36.4]} 38. b4 {[%clk 0:01:21.6]} 38... a4 {[%clk 0:00:36.6]} 39.
Ne3 {[%clk 0:01:10.8]} 39... Ng3 {[%clk 0:00:36]} 40. c5+ {[%clk 0:01:08.2]}
40... Ke6 {[%clk 0:00:36.3]} 41. Kc4 {[%clk 0:01:00.8]} 41... Nxh5 {[%clk
0:00:35.9]} 42. Ng2 {[%clk 0:01:00.8]} 42... g5 {[%clk 0:00:28.2]} 43. fxg5
{[%clk 0:00:58.3]} 43... hxg5 {[%clk 0:00:29.1]} 44. b5 {[%clk 0:00:58.8]} 44...
Kd7 {[%clk 0:00:25.6]} 45. b6 {[%clk 0:00:43]} 45... f4 {[%clk 0:00:24.6]} 46.
Kd4 {[%clk 0:00:43]} 46... g4 {[%clk 0:00:20.4]} 47. Ke4 {[%clk 0:00:35.6]}
47... f3 {[%clk 0:00:20.3]} 48. Ne3 {[%clk 0:00:35.6]} 48... f2 {[%clk 0:00:19]}
49. Nf1 {[%clk 0:00:31.4]} 49... Kc8 {[%clk 0:00:18.2]} 50. Ke3 {[%clk
0:00:29.3]} 50... Nf6 {[%clk 0:00:11.6]} 51. Kxf2 {[%clk 0:00:23.9]} 51... Ne4+
{[%clk 0:00:11.7]} 52. Ke3 {[%clk 0:00:24]} 52... Nxc5 {[%clk 0:00:12.6]} 53.
Kf4 {[%clk 0:00:24.6]} 53... Kb7 {[%clk 0:00:12.6]} 54. Kxg4 {[%clk 0:00:24.9]}
54... Kxb6 {[%clk 0:00:13.1]} 55. Kf3 {[%clk 0:00:23.2]} 55... Kb5 {[%clk
0:00:12.1]} 56. Nd2 {[%clk 0:00:19.6]} 56... Nb3 {[%clk 0:00:10.5]} 57. Ne4
{[%clk 0:00:19.7]} 57... Kc4 {[%clk 0:00:10.1]} 58. Ke2 {[%clk 0:00:18.3]} 58...
Nd4+ {[%clk 0:00:08.5]} 59. Kd2 {[%clk 0:00:18.1]} 59... Nb5 {[%clk 0:00:08.6]}
60. Kc2 {[%clk 0:00:15]} 60... Nxa3+ {[%clk 0:00:08.1]} 61. Kb2 {[%clk
0:00:15.6]} 61... Nb5 {[%clk 0:00:09]} 62. Nd2+ {[%clk 0:00:16.2]} 62... Kb4
{[%clk 0:00:09.3]} 63. Nf3 {[%clk 0:00:16.1]} 63... c5 {[%clk 0:00:08.5]} 64.
Ne5 {[%clk 0:00:15.2]} 64... a3+ {[%clk 0:00:08]} 65. Ka1 {[%clk 0:00:14.1]}
65... c4 {[%clk 0:00:07.7]} 66. Nc6+ {[%clk 0:00:13.1]} 66... Kb3 {[%clk
0:00:06.7]} 67. Na5+ {[%clk 0:00:13]} 67... Kb4 {[%clk 0:00:05.6]} 68. Nc6+
{[%clk 0:00:12.8]} 68... Ka4 {[%clk 0:00:06.1]} 69. Ne5 {[%clk 0:00:03.8]} 69...
Kb3 {[%clk 0:00:05.6]} 0-1

[Event "*** SCC Grand Prix: Titled Tuesday Blitz"]
[Site "Chess.com"]
[Date "2020.08.25"]
[Round "5"]
[White "bascheyaro"]
[Black "Alexander_Zubov"]
[Result "0-1"]
[WhiteElo "2760"]
[BlackElo "2956"]
[TimeControl "180+1"]
[EndTime "10:59:06 PDT"]
[Termination "Alexander_Zubov won by checkmate"]

1. d4 {[%clk 0:03:00.9]} 1... Nf6 {[%clk 0:02:59.3]} 2. Bf4 {[%clk 0:03:00.8]}
2... g6 {[%clk 0:02:58]} 3. e3 {[%clk 0:03:00.7]} 3... Bg7 {[%clk 0:02:57]} 4.
Nf3 {[%clk 0:03:01]} 4... d6 {[%clk 0:02:57.4]} 5. Be2 {[%clk 0:03:01]} 5... c5
{[%clk 0:02:56.1]} 6. O-O {[%clk 0:03:00.3]} 6... Qb6 {[%clk 0:02:55.9]} 7. Nc3
{[%clk 0:02:59.6]} 7... O-O {[%clk 0:02:53]} 8. Na4 {[%clk 0:02:49.5]} 8... Qa5
{[%clk 0:02:47.6]} 9. c4 {[%clk 0:02:49.6]} 9... cxd4 {[%clk 0:02:36.1]} 10.
exd4 {[%clk 0:02:48.3]} 10... d5 {[%clk 0:02:29.7]} 11. Nc5 {[%clk 0:02:32.5]}
11... Qd8 {[%clk 0:02:09.4]} 12. Qb3 {[%clk 0:02:27.2]} 12... b6 {[%clk
0:02:06.7]} 13. Na4 {[%clk 0:02:25.1]} 13... Ba6 {[%clk 0:02:03]} 14. Nc3 {[%clk
0:02:18]} 14... Nc6 {[%clk 0:01:57.8]} 15. Qa4 {[%clk 0:02:10.7]} 15... Bb7
{[%clk 0:01:47.4]} 16. Rad1 {[%clk 0:02:01.2]} 16... dxc4 {[%clk 0:01:41.2]} 17.
Bxc4 {[%clk 0:02:00.6]} 17... Na5 {[%clk 0:01:40.2]} 18. Be2 {[%clk 0:01:59.3]}
18... Nd5 {[%clk 0:01:39.5]} 19. Nxd5 {[%clk 0:01:52.6]} 19... Qxd5 {[%clk
0:01:38.7]} 20. Be5 {[%clk 0:01:52.6]} 20... Bh6 {[%clk 0:01:26.3]} 21. Ne1
{[%clk 0:01:35.7]} 21... Rfc8 {[%clk 0:01:19.2]} 22. b3 {[%clk 0:01:28.1]} 22...
Qd8 {[%clk 0:00:50.1]} 23. Bf3 {[%clk 0:01:25.2]} 23... Bxf3 {[%clk 0:00:49.1]}
24. Nxf3 {[%clk 0:01:25.3]} 24... Qd5 {[%clk 0:00:49.6]} 25. Qb4 {[%clk
0:01:17.6]} 25... Nc6 {[%clk 0:00:46.6]} 26. Qe1 {[%clk 0:01:10.1]} 26... a5
{[%clk 0:00:46.3]} 27. Bg3 {[%clk 0:00:59.1]} 27... a4 {[%clk 0:00:46.2]} 28.
Qe2 {[%clk 0:00:43]} 28... axb3 {[%clk 0:00:44.9]} 29. axb3 {[%clk 0:00:43.8]}
29... e6 {[%clk 0:00:36.8]} 30. Ne5 {[%clk 0:00:30.6]} 30... Nxd4 {[%clk
0:00:31.8]} 31. Qg4 {[%clk 0:00:30]} 31... Rd8 {[%clk 0:00:29.4]} 32. Kh1 {[%clk
0:00:23.2]} 32... Bg7 {[%clk 0:00:28]} 33. Nf3 {[%clk 0:00:20.3]} 33... Qf5
{[%clk 0:00:24.6]} 34. Qxf5 {[%clk 0:00:18.1]} 34... Nxf5 {[%clk 0:00:25.3]} 35.
Rxd8+ {[%clk 0:00:18.3]} 35... Rxd8 {[%clk 0:00:24.9]} 36. Bc7 {[%clk
0:00:18.5]} 36... Rd3 {[%clk 0:00:25.4]} 37. Bxb6 {[%clk 0:00:18.6]} 37... Rxb3
{[%clk 0:00:26]} 38. Bc7 {[%clk 0:00:19]} 38... Rc3 {[%clk 0:00:26.2]} 39. Bg3
{[%clk 0:00:17.6]} 39... h6 {[%clk 0:00:25.5]} 40. Kg1 {[%clk 0:00:17.2]} 40...
Rc5 {[%clk 0:00:25.2]} 41. Rd1 {[%clk 0:00:16.2]} 41... g5 {[%clk 0:00:25.5]}
42. h3 {[%clk 0:00:16.5]} 42... Nxg3 {[%clk 0:00:25.7]} 43. fxg3 {[%clk
0:00:15.7]} 43... f5 {[%clk 0:00:26.4]} 44. g4 {[%clk 0:00:16.1]} 44... f4
{[%clk 0:00:26.8]} 45. Re1 {[%clk 0:00:15.2]} 45... Kf7 {[%clk 0:00:27.3]} 46.
Nd2 {[%clk 0:00:15.3]} 46... Bc3 {[%clk 0:00:25.6]} 47. Ne4 {[%clk 0:00:15.6]}
47... Rc6 {[%clk 0:00:16.6]} 48. Rd1 {[%clk 0:00:15.9]} 48... Kg6 {[%clk
0:00:15.9]} 49. Nxc3 {[%clk 0:00:13.8]} 49... Rxc3 {[%clk 0:00:15.6]} 50. Rd6
{[%clk 0:00:14.3]} 50... Kf6 {[%clk 0:00:16]} 51. Kf2 {[%clk 0:00:14.8]} 51...
Ke5 {[%clk 0:00:16.1]} 52. Rd8 {[%clk 0:00:14.9]} 52... Rc2+ {[%clk 0:00:16.6]}
53. Kf3 {[%clk 0:00:14.8]} 53... Rc3+ {[%clk 0:00:17.3]} 54. Kf2 {[%clk
0:00:15.3]} 54... Ke4 {[%clk 0:00:17.9]} 55. Rd2 {[%clk 0:00:15.4]} 55... e5
{[%clk 0:00:17.2]} 56. Rb2 {[%clk 0:00:14.5]} 56... Rc4 {[%clk 0:00:16.7]} 57.
Re2+ {[%clk 0:00:14.6]} 57... Kd5 {[%clk 0:00:16.6]} 58. Rb2 {[%clk 0:00:14.8]}
58... e4 {[%clk 0:00:16.7]} 59. Ke2 {[%clk 0:00:15.2]} 59... Kd4 {[%clk
0:00:16.4]} 60. Rd2+ {[%clk 0:00:14.9]} 60... Ke5 {[%clk 0:00:17]} 61. Ra2
{[%clk 0:00:15.1]} 61... Rc5 {[%clk 0:00:17.6]} 62. Rb2 {[%clk 0:00:14.9]} 62...
Kd4 {[%clk 0:00:17.8]} 63. Rb4+ {[%clk 0:00:14.7]} 63... Rc4 {[%clk 0:00:17.6]}
64. Rb2 {[%clk 0:00:15.3]} 64... e3 {[%clk 0:00:18.1]} 65. Ra2 {[%clk
0:00:15.5]} 65... Kc3 {[%clk 0:00:18.2]} 66. Ra3+ {[%clk 0:00:15]} 66... Kb4
{[%clk 0:00:18.1]} 67. Ra2 {[%clk 0:00:15]} 67... Kb3 {[%clk 0:00:18.2]} 68. Ra6
{[%clk 0:00:15]} 68... Rc2+ {[%clk 0:00:18.6]} 69. Kf1 {[%clk 0:00:15.5]} 69...
Rf2+ {[%clk 0:00:19.1]} 70. Kg1 {[%clk 0:00:16]} 70... Ra2 {[%clk 0:00:19.5]}
71. Re6 {[%clk 0:00:15.5]} 71... Ra1+ {[%clk 0:00:18.3]} 72. Kh2 {[%clk
0:00:15.3]} 72... Kc4 {[%clk 0:00:18.5]} 73. h4 {[%clk 0:00:15.6]} 73... Kd3
{[%clk 0:00:18.4]} 74. Rd6+ {[%clk 0:00:14]} 74... Ke2 {[%clk 0:00:18.5]} 75. h5
{[%clk 0:00:13.6]} 75... Kf2 {[%clk 0:00:18.6]} 76. g3 {[%clk 0:00:06.2]} 76...
fxg3+ {[%clk 0:00:17.9]} 77. Kh3 {[%clk 0:00:06.7]} 77... Rh1# {[%clk
0:00:18.5]} 0-1